bitfinex/quotes_BTCUSD_20250614
["timestamp","ask_amount","ask_price","bid_price","bid_amount"]
[1749889551168,0.01679469,105060.0,105050.0,1.19172067]
[1749889551383,0.01679469,105060.0,105050.0,0.38494674]
[1749889551384,0.59133478,105060.0,105050.0,0.38494674]
[1749889551585,0.58181696,105060.0,105050.0,0.52217673]
[1749889551793,0.59133469,105060.0,105050.0,0.52217693]
[1749889551992,0.58181696,105060.0,105050.0,0.54002798]
[1749889552230,0.58181696,105060.0,105050.0,0.54002813]
[1749889552604,0.59133469,105060.0,105050.0,0.52217702]
[1749889552819,0.58181696,105060.0,105050.0,0.51548284]
[1749889553033,0.58181696,105060.0,105050.0,0.54002821]
[1749889553269,0.60085233,105060.0,105050.0,0.51548284]
[1749889553466,0.60085233,105060.0,105050.0,0.54002814]
[1749889553672,0.60085233,105060.0,105050.0,0.522177]
[1749889553895,0.5913346,105060.0,105050.0,0.53333392]
[1749889554134,0.5913346,105060.0,105050.0,0.52217699]
[1749889554373,0.60085242,105060.0,105050.0,0.54002623]
[1749889554815,0.5913346,105060.0,105050.0,0.52217648]
[1749889555029,0.5913346,105060.0,105050.0,0.54002619]
[1749889555246,0.60085242,105060.0,105050.0,0.52217648]
[1749889555642,0.60085242,105060.0,105050.0,0.53333254]
[1749889555850,0.60085233,105060.0,105050.0,0.54002618]
[1749889556059,0.60085233,105060.0,105050.0,0.52217648]
[1749889556287,0.60085233,105060.0,105050.0,0.53333254]
[1749889556503,0.60085233,105060.0,105050.0,0.54002618]
[1749889556903,0.60085233,105060.0,105050.0,0.53333254]
[1749889557219,0.60085233,105060.0,105050.0,0.54002618]
[1749889557422,0.04534761,105060.0,105050.0,0.54002618]
[1749889557636,0.60085233,105060.0,105050.0,0.54002618]
[1749889559304,0.60085233,105060.0,105050.0,0.52217636]
[1749889559427,0.60085233,105060.0,105050.0,0.54002576]
[1749889559917,0.59133469,105060.0,105050.0,0.54002576]
[1749889560141,0.58181696,105060.0,105050.0,0.53333224]
[1749889560323,0.59133469,105060.0,105050.0,0.54002576]
[1749889560728,0.59133469,105060.0,105050.0,0.54002574]
[1749889560947,0.59133469,105060.0,105050.0,0.52217634]
[1749889561166,0.59133469,105060.0,105050.0,0.51548284]
[1749889561409,0.59133469,105060.0,105050.0,0.54002568]
[1749889561619,0.59133469,105060.0,105050.0,0.52217634]
[1749889561826,0.59133469,105060.0,105050.0,0.51548284]
[1749889562031,0.59133469,105060.0,105050.0,0.52217634]
[1749889562243,0.59133469,105060.0,105050.0,0.51548284]
[1749889562454,0.5913346,105060.0,105050.0,0.54002568]
[1749889562870,0.5913346,105060.0,105050.0,0.53333218]
[1749889563078,0.5913346,105060.0,105050.0,0.54002568]
[1749889563696,0.5913346,105060.0,105050.0,0.52217634]
[1749889563907,0.5913346,105060.0,105050.0,0.53333218]
[1749889564136,0.5913346,105060.0,105050.0,0.52217634]
[1749889564339,0.5913346,105060.0,105050.0,0.54002568]
[1749889564552,0.5913346,105060.0,105050.0,0.52217634]
[1749889564761,0.5913346,105060.0,105050.0,0.54002568]
[1749889564972,0.5913346,105060.0,105050.0,0.54002593]
[1749889565174,0.5913346,105060.0,105050.0,0.53333236]
[1749889565375,0.5913346,105060.0,105050.0,0.54002593]
[1749889565936,0.5913346,105060.0,105050.0,0.51548284]
[1749889566140,0.5913346,105060.0,105050.0,0.54002593]
[1749889566380,0.5913346,105060.0,105050.0,0.53333236]
[1749889566581,0.5913346,105060.0,105050.0,0.52217624]
[1749889566705,0.5913346,105060.0,105050.0,0.5333319]
[1749889566910,0.5913346,105060.0,105050.0,0.5400253]
[1749889567684,0.5913346,105060.0,105050.0,0.5333319]
[1749889567895,0.5913346,105060.0,105050.0,0.5400253]
[1749889568318,0.58181696,105060.0,105050.0,0.5400253]
[1749889568787,0.59133469,105060.0,105050.0,0.5400253]
[1749889569651,0.59133469,105060.0,105050.0,0.52217637]
[1749889569854,0.59133469,105060.0,105050.0,0.5400258]
[1749889570487,0.60085251,105060.0,105050.0,0.52217637]
[1749889570694,0.60085251,105060.0,105050.0,0.51548284]
[1749889570898,0.59133469,105060.0,105050.0,0.53333227]
[1749889571083,0.59133469,105060.0,105050.0,0.5400258]
[1749889571382,0.59133469,105060.0,105050.0,0.52217637]
[1749889571594,0.58181696,105060.0,105050.0,0.51548284]
[1749889571803,0.59133469,105060.0,105050.0,0.5400258]
[1749889572416,0.59133469,105060.0,105050.0,0.52217637]
[1749889572657,0.59133469,105060.0,105050.0,0.53333227]
[1749889572871,0.59133469,105060.0,105050.0,0.5400258]
[1749889573080,0.59133469,105060.0,105050.0,0.53333227]
[1749889573289,0.59133469,105060.0,105050.0,0.52217637]
[1749889573502,0.59133469,105060.0,105050.0,0.5400258]
[1749889573709,0.59133469,105060.0,105050.0,0.51548284]
[1749889573922,0.59133469,105060.0,105050.0,0.53333227]
[1749889574121,0.59133469,105060.0,105050.0,0.51548284]
[1749889574323,0.03582997,105060.0,105050.0,0.51548284]
[1749889574530,0.59133469,105060.0,105050.0,0.53333227]
[1749889574934,0.59133469,105060.0,105050.0,0.5400258]
[1749889575144,0.59133469,105060.0,105050.0,0.52217637]
[1749889575353,0.59133469,105060.0,105050.0,0.5400258]
[1749889576398,0.59133469,105060.0,105050.0,0.53333227]
[1749889576610,0.59133469,105060.0,105050.0,0.52217637]
[1749889576812,0.59133469,105060.0,105050.0,0.5400258]
[1749889577018,0.59133469,105060.0,105050.0,0.53333227]
[1749889577243,0.59133469,105060.0,105050.0,0.5400258]
[1749889577873,0.59133469,105060.0,105050.0,0.52217637]
[1749889578080,0.59133469,105060.0,105050.0,0.5400258]
[1749889578453,0.59133469,105060.0,105050.0,0.53333227]
[1749889578661,0.59133469,105060.0,105050.0,0.5400258]
[1749889578861,0.59133469,105060.0,105050.0,0.53333227]
[1749889579023,0.59133469,105060.0,105050.0,0.5400258]
[1749889579435,0.03582997,105060.0,105050.0,0.5400258]
[1749889579632,0.59133469,105060.0,105050.0,0.5400258]
[1749889580495,0.6008526,105060.0,105050.0,0.5400258]
[1749889580696,0.59133469,105060.0,105050.0,0.5400258]
[1749889581307,0.59133469,105060.0,105050.0,0.53333227]
[1749889581724,0.59133469,105060.0,105050.0,0.5400258]
[1749889581944,0.03582997,105060.0,105050.0,0.5400258]
[1749889582162,0.59133469,105060.0,105050.0,0.5400258]
[1749889582627,0.58181696,105060.0,105050.0,0.5400258]
[1749889582878,0.60085242,105060.0,105050.0,0.5400258]
[1749889583071,0.60085242,105060.0,105050.0,0.52217637]
[1749889583286,0.5913346,105060.0,105050.0,0.51548284]
[1749889583500,0.03582988,105060.0,105050.0,0.52217637]
[1749889583713,0.66223669,105070.0,105060.0,0.20940367]
[1749889583931,0.6622844,105070.0,105060.0,0.32349486]
[1749889584154,0.6622844,105070.0,105060.0,0.33018838]
[1749889584360,0.6622844,105070.0,105060.0,0.31233896]
[1749889584567,0.6622844,105070.0,105060.0,0.31233953]
[1749889584817,0.6622844,105070.0,105060.0,0.33019047]
[1749889585445,0.67897152,105070.0,105060.0,0.31233953]
[1749889585649,0.67897152,105070.0,105060.0,0.30564543]
[1749889585860,0.67897152,105070.0,105060.0,0.33970781]
[1749889586072,0.67897152,105070.0,105060.0,0.31516334]
[1749889586271,0.67897152,105070.0,105060.0,0.33970781]
[1749889586479,0.67897152,105070.0,105060.0,0.33301387]
[1749889586741,0.67897152,105070.0,105060.0,0.33970781]
[1749889587159,0.67897152,105070.0,105060.0,0.32185728]
[1749889587389,0.67897152,105070.0,105060.0,0.33970781]
[1749889587614,0.67897152,105070.0,105060.0,0.35860781]
[1749889588260,0.67897152,105070.0,105060.0,0.33406334]
[1749889588477,0.67897152,105070.0,105060.0,0.34075728]
[1749889588705,0.67897152,105070.0,105060.0,0.35860781]
[1749889589131,0.67897152,105070.0,105060.0,0.35191387]
[1749889589344,0.67897152,105070.0,105060.0,0.35860781]
[1749889589555,0.67897152,105070.0,105060.0,0.3586078]
[1749889589971,0.67897152,105070.0,105060.0,0.34075728]
[1749889590179,0.67897152,105070.0,105060.0,0.35860781]
[1749889592126,0.67897152,105070.0,105060.0,0.33005363]
[1749889592363,0.66945424,105070.0,105060.0,0.12078625]
[1749889592607,0.70485424,105070.0,105060.0,0.20940386]
[1749889592836,0.70485424,105070.0,105060.0,0.22725472]
[1749889593072,0.68735424,105070.0,105060.0,0.22725477]
[1749889593295,0.68735424,105070.0,105060.0,0.23394879]
[1749889593742,0.71015078,105070.0,105060.0,0.23394879]
[1749889593976,0.71015078,105070.0,105060.0,0.20940404]
[1749889594197,0.69225078,105070.0,105060.0,0.21609806]
[1749889594469,0.69225078,105070.0,105060.0,0.22725477]
[1749889594693,0.69225078,105070.0,105060.0,0.20940404]
[1749889594910,0.69225078,105070.0,105060.0,0.22725465]
[1749889595154,0.69225078,105070.0,105060.0,0.23394862]
[1749889595357,0.69225078,105070.0,105060.0,0.20940404]
[1749889595574,0.69225078,105070.0,105060.0,0.21609801]
[1749889595793,0.69225078,105070.0,105060.0,0.23394862]
[1749889596017,0.69225078,105070.0,105060.0,0.20940404]
[1749889596469,0.69225078,105070.0,105060.0,0.22725267]
[1749889596696,0.69225078,105070.0,105060.0,0.20940404]
[1749889596937,0.69225078,105070.0,105060.0,0.22725267]
[1749889597136,0.69225078,105070.0,105060.0,0.2339459]
[1749889597774,0.69225078,105070.0,105060.0,0.21609727]
[1749889597989,0.69225078,105070.0,105060.0,0.26266408]
[1749889598255,0.69225078,105070.0,105060.0,0.25597085]
[1749889598471,0.69225078,105070.0,105060.0,0.26266408]
[1749889598884,0.69225078,105070.0,105060.0,0.25597085]
[1749889599125,0.69225078,105070.0,105060.0,0.26266401]
[1749889599754,0.69225078,105070.0,105060.0,0.26266296]
[1749889599962,0.69225078,105070.0,105060.0,0.25597004]
[1749889600169,0.69225078,105070.0,105060.0,0.26266297]
[1749889600382,0.69225078,105070.0,105060.0,0.26266296]
[1749889600766,0.69225078,105070.0,105060.0,0.25597003]
[1749889600912,0.61231955,105070.0,105060.0,0.26266296]
[1749889601115,0.80267086,105070.0,105060.0,0.26266296]
[1749889601825,0.80267086,105070.0,105060.0,0.25597003]
[1749889602248,0.80267086,105070.0,105060.0,0.26266296]
[1749889602450,0.80267086,105070.0,105060.0,0.23812222]
[1749889602636,0.80267086,105070.0,105060.0,0.26266296]
[1749889603455,0.80267086,105070.0,105060.0,0.25433324]
[1749889603679,0.80267086,105070.0,105060.0,0.27218105]
[1749889603875,0.80267086,105070.0,105060.0,0.24764031]
[1749889604081,0.80267086,105070.0,105060.0,0.27218105]
[1749889604277,0.80267086,105070.0,105060.0,0.26548812]
[1749889604532,0.80267086,105070.0,105060.0,0.24764031]
[1749889604745,0.80267086,105070.0,105060.0,0.27218105]
[1749889605181,0.80267086,105070.0,105060.0,0.25433324]
[1749889605424,0.80267086,105070.0,105060.0,0.26548812]
[1749889605637,0.80267086,105070.0,105060.0,0.24764031]
[1749889605872,0.80267086,105070.0,105060.0,0.25433324]
[1749889606071,0.80267086,105070.0,105060.0,0.27218105]
[1749889606280,0.80267086,105070.0,105060.0,0.26266296]
[1749889606483,0.80267086,105070.0,105060.0,0.24481515]
[1749889606712,0.80267086,105070.0,105060.0,0.24764031]
[1749889606923,0.80267086,105070.0,105060.0,0.25433324]
[1749889607143,0.80267086,105070.0,105060.0,0.26548812]
[1749889607579,0.80267086,105070.0,105060.0,0.27218105]
[1749889607786,0.80267086,105070.0,105060.0,0.24764031]
[1749889608008,0.80267086,105070.0,105060.0,0.26548812]
[1749889608187,0.80267086,105070.0,105060.0,0.27218105]
[1749889608434,0.80267086,105070.0,105060.0,0.25433324]
[1749889608765,0.80267086,105070.0,105060.0,0.27218105]
[1749889609177,0.80267086,105070.0,105060.0,0.26548812]
[1749889609353,0.80267086,105070.0,105060.0,0.27218105]
[1749889609557,0.80267086,105070.0,105060.0,0.26385124]
[1749889609809,0.80267086,105070.0,105060.0,0.28169905]
[1749889610007,0.80267086,105070.0,105060.0,0.25715831]
[1749889610219,0.80267086,105070.0,105060.0,0.27500612]
[1749889610419,0.80267086,105070.0,105060.0,0.28169905]
[1749889610985,0.82545931,105070.0,105060.0,0.28169905]
[1749889611368,0.82545931,105070.0,105060.0,0.26385124]
[1749889611564,0.82545931,105070.0,105060.0,0.27500612]
[1749889611769,0.82545931,105070.0,105060.0,0.25715831]
[1749889612184,0.82545931,105070.0,105060.0,0.27500684]
[1749889612431,0.82545931,105070.0,105060.0,0.28170004]
[1749889612844,0.82545931,105070.0,105060.0,0.25715831]
[1749889613025,0.82545931,105070.0,105060.0,0.27500684]
[1749889613256,0.82545931,105070.0,105060.0,0.28170003]
[1749889613430,0.82545931,105070.0,105060.0,0.26385151]
[1749889613690,0.82545931,105070.0,105060.0,0.28170003]
[1749889614547,0.82545931,105070.0,105060.0,0.2638515]
[1749889614750,0.82545931,105070.0,105060.0,0.28170004]
[1749889615182,0.82545931,105070.0,105060.0,0.2638515]
[1749889615395,0.82545931,105070.0,105060.0,0.28170003]
[1749889615603,0.82545931,105070.0,105060.0,0.27500924]
[1749889615809,0.82545931,105070.0,105060.0,0.26385241]
[1749889616021,0.82545931,105070.0,105060.0,0.27500924]
[1749889616490,0.82545931,105070.0,105060.0,0.28170334]
[1749889616922,0.82545931,105070.0,105060.0,0.26385241]
[1749889617133,0.82545931,105070.0,105060.0,0.27500924]
[1749889617444,0.82545931,105070.0,105060.0,0.28170334]
[1749889618145,0.82545931,105070.0,105060.0,0.29390924]
[1749889618348,0.82545931,105070.0,105060.0,0.30060333]
[1749889618966,0.82545931,105070.0,105060.0,0.2827524]
[1749889619164,0.82545931,105070.0,105060.0,0.30060333]
[1749889619370,0.82545931,105070.0,105060.0,0.2827524]
[1749889619780,0.82545931,105070.0,105060.0,0.30060333]
[1749889620637,0.82545931,105070.0,105060.0,0.26654031]
[1749889620854,0.82545931,105070.0,105060.0,0.28439124]
[1749889621068,0.82545931,105070.0,105060.0,0.29108533]
[1749889621314,0.82545931,105070.0,105060.0,0.28439124]
[1749889621493,0.82545931,105070.0,105060.0,0.29108533]
[1749889621715,0.82545931,105070.0,105060.0,0.28439124]
[1749889621943,0.82545931,105070.0,105060.0,0.29108532]
[1749889622161,0.82545931,105070.0,105060.0,0.26654031]
[1749889622414,0.82545931,105070.0,105060.0,0.29108532]
[1749889622639,0.82545931,105070.0,105060.0,0.27323441]
[1749889622876,0.82545931,105070.0,105060.0,0.29108534]
[1749889623091,0.82545931,105070.0,105060.0,0.28439124]
[1749889623778,0.82545931,105070.0,105060.0,0.27487315]
[1749889624004,0.82545931,105070.0,105060.0,0.28156724]
[1749889624217,0.98037931,105070.0,105060.0,0.25702222]
[1749889624684,0.98037931,105070.0,105060.0,0.28156724]
[1749889624905,0.98037931,105070.0,105060.0,0.29108524]
[1749889625968,0.98037931,105070.0,105060.0,0.28156724]
[1749889626192,0.98037931,105070.0,105060.0,0.27204906]
[1749889626417,0.98037931,105070.0,105060.0,0.28156759]
[1749889626876,1.07652853,105070.0,105060.0,0.2748734]
[1749889627101,1.07652853,105070.0,105060.0,0.25702222]
[1749889627320,1.07652853,105070.0,105060.0,0.28156759]
[1749889627549,1.07653149,105070.0,105060.0,0.28156759]
[1749889628002,0.98038227,105070.0,105060.0,0.28156759]
[1749889628214,0.98038227,105070.0,105060.0,0.26371641]
[1749889628422,0.98038227,105070.0,105060.0,0.28156759]
[1749889628630,0.98038227,105070.0,105060.0,0.26371641]
[1749889628866,0.98038227,105070.0,105060.0,0.28156759]
[1749889629076,0.98038227,105070.0,105060.0,0.26371641]
[1749889629302,0.98038227,105070.0,105060.0,0.28156759]
[1749889629754,0.98038227,105070.0,105060.0,0.2748734]
[1749889629970,0.98038227,105070.0,105060.0,0.28156754]
[1749889630501,0.98038227,105070.0,105060.0,0.2748734]
[1749889630717,0.98038227,105070.0,105060.0,0.27487328]
[1749889630930,0.98038227,105070.0,105060.0,0.28156742]
[1749889631148,0.98038227,105070.0,105060.0,0.27487328]
[1749889631376,0.98038227,105070.0,105060.0,0.28439137]
[1749889631582,0.98038227,105070.0,105060.0,0.26654031]
[1749889631803,0.98038227,105070.0,105060.0,0.29108551]
[1749889632213,0.98038227,105070.0,105060.0,0.28439137]
[1749889632420,0.98038227,105070.0,105060.0,0.29108551]
[1749889633562,0.98038227,105070.0,105060.0,0.28439137]
[1749889633770,0.98038227,105070.0,105060.0,0.29108551]
[1749889634194,0.98038227,105070.0,105060.0,0.28439137]
[1749889634409,0.98038227,105070.0,105060.0,0.29108551]
[1749889635466,0.98038227,105070.0,105060.0,0.27323445]
[1749889635678,0.98038227,105070.0,105060.0,0.29108551]
[1749889636078,0.98038227,105070.0,105060.0,0.28439137]
[1749889636293,0.98038227,105070.0,105060.0,0.29108551]
[1749889636968,0.98038227,105070.0,105060.0,0.28439137]
[1749889637392,0.98038227,105070.0,105060.0,0.29108551]
[1749889637605,0.98038227,105070.0,105060.0,0.29108552]
[1749889637826,0.98038227,105070.0,105060.0,0.28439137]
[1749889638452,0.98038227,105070.0,105060.0,0.29108552]
[1749889638656,0.98038227,105070.0,105060.0,0.28439137]
[1749889638866,0.98038227,105070.0,105060.0,0.29108551]
[1749889639080,0.98038227,105070.0,105060.0,0.28439137]
[1749889639915,0.98038227,105070.0,105060.0,0.26654031]
[1749889640129,0.98038227,105070.0,105060.0,0.28439137]
[1749889640382,0.98038227,105070.0,105060.0,0.29108552]
[1749889640797,0.98038227,105070.0,105060.0,0.28439137]
[1749889641016,0.98038227,105070.0,105060.0,0.29108552]
[1749889641225,0.98038227,105070.0,105060.0,0.27323446]
[1749889641429,0.98038227,105070.0,105060.0,0.28439137]
[1749889641642,0.98038227,105070.0,105060.0,0.29108552]
[1749889642063,0.98038227,105070.0,105060.0,0.29108568]
[1749889642275,0.98038227,105070.0,105060.0,0.2732345]
[1749889642691,0.98038227,105070.0,105060.0,0.26654031]
[1749889642964,0.98038227,105070.0,105060.0,0.2732345]
[1749889643168,0.98038227,105070.0,105060.0,0.28156759]
[1749889643377,0.98038227,105070.0,105060.0,0.26535522]
[1749889643582,0.98038376,105070.0,105060.0,0.26535522]
[1749889643794,0.98038376,105070.0,105060.0,0.27204941]
[1749889644447,0.98038376,105070.0,105060.0,0.27204933]
[1749889644649,0.98038376,105070.0,105060.0,0.27204912]
[1749889645608,0.98038378,105070.0,105060.0,0.26535501]
[1749889645791,0.98038378,105070.0,105060.0,0.27204912]
[1749889646383,0.98038378,105070.0,105060.0,0.25419815]
[1749889646550,0.98038378,105070.0,105060.0,0.26535501]
[1749889646755,0.98038378,105070.0,105060.0,0.27204912]
[1749889647010,0.98038378,105070.0,105060.0,0.26535501]
[1749889647241,0.98038378,105070.0,105060.0,0.27204912]
[1749889647816,0.98038378,105070.0,105060.0,0.26535501]
[1749889648129,0.98038378,105070.0,105060.0,0.24750404]
[1749889648327,0.98038378,105070.0,105060.0,0.26535501]
[1749889648529,1.076533,105070.0,105060.0,0.27204912]
[1749889648766,1.076533,105070.0,105060.0,0.26535501]
[1749889648971,1.076533,105070.0,105060.0,0.25419815]
[1749889649175,1.076533,105070.0,105060.0,0.26535501]
[1749889649351,1.076533,105070.0,105060.0,0.25419815]
[1749889649575,1.076533,105070.0,105060.0,0.26535501]
[1749889649759,0.98038378,105070.0,105060.0,0.27204912]
[1749889650086,0.98008899,105070.0,105060.0,0.2815673]
[1749889650289,0.98008899,105070.0,105060.0,0.26371633]
[1749889650501,0.98008899,105070.0,105060.0,0.2815673]
[1749889650930,0.98008899,105070.0,105060.0,0.27487319]
[1749889651083,0.98008899,105070.0,105060.0,0.2815673]
[1749889651967,0.98008899,105070.0,105060.0,0.27487319]
[1749889652170,0.98008899,105070.0,105060.0,0.26371635]
[1749889652375,0.98008899,105070.0,105060.0,0.27487323]
[1749889652573,0.98008899,105070.0,105060.0,0.26371635]
[1749889652712,0.98008899,105070.0,105060.0,0.28156736]
[1749889652920,0.98008899,105070.0,105060.0,0.25702222]
[1749889653114,0.98008899,105070.0,105060.0,0.27487323]
[1749889653364,0.98008899,105070.0,105060.0,0.28156736]
[1749889653724,0.98008899,105070.0,105060.0,0.27487323]
[1749889654257,0.98008899,105070.0,105060.0,0.28156736]
[1749889654467,0.98008899,105070.0,105060.0,0.29108545]
[1749889654623,0.98008899,105070.0,105060.0,0.28439132]
[1749889654828,0.98008899,105070.0,105060.0,0.29108545]
[1749889655036,0.98008899,105070.0,105060.0,0.28156736]
[1749889655627,0.98008899,105070.0,105060.0,0.27487323]
[1749889655807,0.98008899,105070.0,105060.0,0.28156736]
[1749889656012,0.98008899,105070.0,105060.0,0.27487323]
[1749889656219,0.74585603,105070.0,105060.0,0.28439132]
[1749889656420,0.94065603,105070.0,105060.0,0.26654031]
[1749889656580,0.94065603,105070.0,105060.0,0.29390917]
[1749889656813,0.94065603,105070.0,105060.0,0.30060317]
[1749889657017,0.97851129,105070.0,105060.0,0.30060317]
[1749889657229,0.97851129,105070.0,105060.0,0.28275236]
[1749889657643,0.97851129,105070.0,105060.0,0.27605831]
[1749889658051,0.97851129,105070.0,105060.0,0.3006032]
[1749889658265,0.97851129,105070.0,105060.0,0.27605831]
[1749889658463,0.97851129,105070.0,105060.0,0.3006032]
[1749889658702,0.97851129,105070.0,105060.0,0.29390914]
[1749889659202,0.97851129,105070.0,105060.0,0.3006032]
[1749889659422,0.97851129,105070.0,105060.0,0.29390914]
[1749889659630,0.97851129,105070.0,105060.0,0.3006032]
[1749889659834,0.97851129,105070.0,105060.0,0.29390914]
[1749889660056,0.97851129,105070.0,105060.0,0.30060343]
[1749889660261,0.97851129,105070.0,105060.0,0.27605831]
[1749889660458,0.97851129,105070.0,105060.0,0.28275197]
[1749889660617,0.97851129,105070.0,105060.0,0.30060297]
[1749889661289,0.80274356,105070.0,105060.0,0.30060243]
[1749889661427,1.00702102,105070.0,105060.0,0.3006024]
[1749889661624,1.00702102,105070.0,105060.0,0.29108467]
[1749889661823,1.00702102,105070.0,105060.0,0.27323369]
[1749889662006,1.00702102,105070.0,105060.0,0.29108466]
[1749889662207,1.00702102,105070.0,105060.0,0.29390837]
[1749889662407,1.00702102,105070.0,105060.0,0.30060248]
[1749889662609,1.00702102,105070.0,105060.0,0.2760574]
[1749889662857,1.00702102,105070.0,105060.0,0.30060248]
[1749889663052,1.00702102,105070.0,105060.0,0.29390837]
[1749889663342,1.00702102,105070.0,105060.0,0.30060248]
[1749889664136,0.05688955,105070.0,105060.0,0.29390837]
[1749889664275,1.00702093,105070.0,105060.0,0.30060181]
[1749889664480,1.00702093,105070.0,105060.0,0.28275101]
[1749889664684,1.00702093,105070.0,105060.0,0.29390773]
[1749889665021,1.00702093,105070.0,105060.0,0.30060177]
[1749889665602,1.00702093,105070.0,105060.0,0.28275099]
[1749889665806,1.00702093,105070.0,105060.0,0.29390773]
[1749889666008,1.00702093,105070.0,105060.0,0.30060177]
[1749889666450,0.80715427,105070.0,105060.0,0.30060177]
[1749889666645,0.80715427,105070.0,105060.0,0.30060021]
[1749889666851,0.80715427,105070.0,105060.0,0.30059604]
[1749889667379,0.80715427,105070.0,105060.0,0.30059602]
[1749889667602,0.80715427,105070.0,105060.0,0.27605695]
[1749889667811,0.80715427,105070.0,105060.0,0.30059601]
[1749889668237,0.80715427,105070.0,105060.0,0.28274942]
[1749889668463,0.80715427,105070.0,105060.0,0.29390354]
[1749889668737,0.80715427,105070.0,105060.0,0.28274943]
[1749889668882,0.80715427,105070.0,105060.0,0.27605695]
[1749889669087,0.80715427,105070.0,105060.0,0.30059599]
[1749889669290,0.80715427,105070.0,105060.0,0.30059594]
[1749889669539,0.81667091,105070.0,105060.0,0.30059593]
[1749889669687,0.26116619,105070.0,105060.0,0.27605695]
[1749889669902,0.80715363,105070.0,105060.0,0.29390331]
[1749889670109,0.81667082,105070.0,105060.0,0.28274933]
[1749889670318,0.81667082,105070.0,105060.0,0.2939033]
[1749889670514,0.2421319,105070.0,105060.0,0.39683744]
[1749889670744,0.23261526,105070.0,105060.0,0.37229871]
[1749889670946,0.23261526,105070.0,105060.0,0.39683719]
[1749889671161,0.78811998,105070.0,105060.0,0.39683719]
[1749889671431,0.78811998,105070.0,105060.0,0.37899101]
[1749889671639,0.78811998,105070.0,105060.0,0.39683715]
[1749889671839,0.79763671,105070.0,105060.0,0.39683715]
[1749889672620,0.79763671,105070.0,105060.0,0.37899101]
[1749889672819,0.79763671,105070.0,105060.0,0.39683715]
[1749889673022,0.79763671,105070.0,105060.0,0.37899101]
[1749889673240,0.79763671,105070.0,105060.0,0.39683715]
[1749889673595,0.79763671,105070.0,105060.0,0.3968362]
[1749889673800,0.80715363,105070.0,105060.0,0.3901439]
[1749889674125,0.79763671,105070.0,105060.0,0.39683562]
[1749889674327,0.80715354,105070.0,105060.0,0.39683564]
[1749889674939,0.80715354,105070.0,105060.0,0.39683566]
[1749889675437,0.80715354,105070.0,105060.0,0.39014377]
[1749889675632,0.81667055,105070.0,105060.0,0.39014423]
[1749889676029,0.81667055,105070.0,105060.0,0.3968363]
[1749889676229,0.81667055,105070.0,105060.0,0.39014423]
[1749889676433,0.26116583,105070.0,105060.0,0.39683628]
[1749889676692,0.81667055,105070.0,105060.0,0.39683609]
[1749889676824,0.81667055,105070.0,105060.0,0.37899072]
[1749889677023,0.81667055,105070.0,105060.0,0.3968361]
[1749889677487,0.82618774,105070.0,105060.0,0.3968361]
[1749889677698,0.81663055,105070.0,105060.0,0.3968361]
[1749889677902,0.82614774,105070.0,105060.0,0.3968361]
[1749889678109,0.81663055,105070.0,105060.0,0.3968361]
[1749889678366,0.82614783,105070.0,105060.0,0.37229871]
[1749889678573,0.82614783,105070.0,105060.0,0.3968361]
[1749889678779,0.82614774,105070.0,105060.0,0.3968361]
[1749889679000,0.82614774,105070.0,105060.0,0.37899072]
[1749889679204,0.82614774,105070.0,105060.0,0.3968361]
[1749889679424,0.82614774,105070.0,105060.0,0.37229871]
[1749889679639,0.27064302,105070.0,105060.0,0.39683598]
[1749889679854,0.82614774,105070.0,105060.0,0.39683599]
[1749889680059,0.82614774,105070.0,105060.0,0.39683601]
[1749889680289,0.82614774,105070.0,105060.0,0.37229871]
[1749889680711,0.82614774,105070.0,105060.0,0.39683598]
[1749889680920,0.82614774,105070.0,105060.0,0.390144]
[1749889681121,0.82614774,105070.0,105060.0,0.39682777]
[1749889681344,0.82614774,105070.0,105060.0,0.37229871]
[1749889681551,0.81663055,105070.0,105060.0,0.37229871]
[1749889681756,0.82614774,105070.0,105060.0,0.39682883]
[1749889681957,0.82614774,105070.0,105060.0,0.37898872]
[1749889682167,0.82614774,105070.0,105060.0,0.39682881]
[1749889682310,0.82614774,105070.0,105060.0,0.3968289]
[1749889683003,0.82614774,105070.0,105060.0,0.39682888]
[1749889683206,0.82614774,105070.0,105060.0,0.39682887]
[1749889683840,0.82614774,105070.0,105060.0,0.37898873]
[1749889684033,0.82614774,105070.0,105060.0,0.39682887]
[1749889684235,0.82614774,105070.0,105060.0,0.39013882]
[1749889684537,0.82614774,105070.0,105060.0,0.37898875]
[1749889684733,0.82614774,105070.0,105060.0,0.37898876]
[1749889684934,0.82614774,105070.0,105060.0,0.3968289]
[1749889685303,0.82614765,105070.0,105060.0,0.39013884]
[1749889685511,0.82614765,105070.0,105060.0,0.39682884]
[1749889685724,0.82614765,105070.0,105060.0,0.39682888]
[1749889685960,0.82614765,105070.0,105060.0,0.37898875]
[1749889686170,0.82614765,105070.0,105060.0,0.3968289]
[1749889686800,0.82614765,105070.0,105060.0,0.37898876]
[1749889687008,0.82614765,105070.0,105060.0,0.3968289]
[1749889687230,0.82614765,105070.0,105060.0,0.37898876]
[1749889687439,0.82614765,105070.0,105060.0,0.3968289]
[1749889687851,0.82614765,105070.0,105060.0,0.37898876]
[1749889688061,0.82614765,105070.0,105060.0,0.39682891]
[1749889688240,0.82614765,105070.0,105060.0,0.3968289]
[1749889688892,0.82614765,105070.0,105060.0,0.37898876]
[1749889689097,0.82614765,105070.0,105060.0,0.3968289]
[1749889689718,0.82614765,105070.0,105060.0,0.39682889]
[1749889689898,0.82614765,105070.0,105060.0,0.39682891]
[1749889690100,0.82614765,105070.0,105060.0,0.39682972]
[1749889690309,0.82614765,105070.0,105060.0,0.39682971]
[1749889691034,0.82614765,105070.0,105060.0,0.39683178]
[1749889691242,0.82614765,105070.0,105060.0,0.39683184]
[1749889692797,0.82614765,105070.0,105060.0,0.39683183]
[1749889693825,0.82614765,105070.0,105060.0,0.39683184]
[1749889694028,0.82614765,105070.0,105060.0,0.39014099]
[1749889694232,0.82614765,105070.0,105060.0,0.39683183]
[1749889694458,0.82614765,105070.0,105060.0,0.39014098]
[1749889694662,0.82614765,105070.0,105060.0,0.39683183]
[1749889695692,0.82614765,105070.0,105060.0,0.39014098]
[1749889695894,0.82614765,105070.0,105060.0,0.39683183]
[1749889696221,0.82614765,105070.0,105060.0,0.3968318]
[1749889697012,0.82614765,105070.0,105060.0,0.39014846]
[1749889697160,0.82614765,105070.0,105060.0,0.39684211]
[1749889698076,0.82614765,105070.0,105060.0,0.3968421]
[1749889698528,0.82614765,105070.0,105060.0,0.37229871]
[1749889698767,0.82614765,105070.0,105060.0,0.37899236]
[1749889699196,0.82614765,105070.0,105060.0,0.39684205]
[1749889699402,0.82614765,105070.0,105060.0,0.39684202]
[1749889699579,0.82614765,105070.0,105060.0,0.39014839]
[1749889699784,0.82614765,105070.0,105060.0,0.39684202]
[1749889700018,0.82614765,105070.0,105060.0,0.396842]
[1749889700195,0.82614765,105070.0,105060.0,0.37899235]
[1749889700369,0.82614765,105070.0,105060.0,0.396842]
[1749889700577,0.82614765,105070.0,105060.0,0.39014838]
[1749889700800,0.82614765,105070.0,105060.0,0.37899233]
[1749889701042,0.82614765,105070.0,105060.0,0.39684206]
[1749889701211,0.82614765,105070.0,105060.0,0.39684211]